bitfinex/quotes_ETHUSD_20250426
["timestamp","ask_amount","ask_price","bid_price","bid_amount"]
[1745696195198,15.82351376,1808.8,1808.7,0.45857927]
[1745696195397,18.82351376,1808.8,1808.7,0.00419861]
[1745696205768,18.82270202,1808.8,1808.7,0.00419861]
[1745696206352,15.82270202,1808.8,1808.7,0.00419861]
[1745696206551,11.94821553,1808.8,1808.7,0.00419861]
[1745696206853,11.94821553,1808.8,1808.7,0.46396463]
[1745696207045,11.94821553,1808.8,1808.7,0.00419861]
[1745696207830,11.94821553,1808.8,1808.7,0.46396463]
[1745696208020,11.94821553,1808.8,1808.7,0.00419861]
[1745696208222,11.94821553,1808.8,1808.7,0.46396463]
[1745696208445,11.94821553,1808.8,1808.7,0.00419861]
[1745696208646,11.94821553,1808.8,1808.7,0.46396463]
[1745696208921,11.94821553,1808.8,1808.7,0.00419861]
[1745696209122,11.94821553,1808.8,1808.7,0.46396463]
[1745696210152,5.83821553,1808.8,1808.7,0.46396463]
[1745696212262,7.58566869,1808.8,1808.7,0.46396463]
[1745696212437,8.35356869,1808.8,1808.7,0.46396463]
[1745696212863,8.35356869,1808.8,1808.7,0.00419861]
[1745696221074,7.58566869,1808.8,1808.7,0.00419861]
[1745696221372,8.39286869,1808.8,1808.7,0.00419861]
[1745696221874,14.50286869,1808.8,1808.7,0.00419861]
[1745696224047,19.06486869,1808.8,1808.7,0.00419861]
[1745696225096,18.25766869,1808.8,1808.7,0.00419861]
[1745696225296,16.51021553,1808.8,1808.7,0.00419861]
[1745696226094,16.51021553,1808.8,1808.7,0.46402018]
[1745696227880,10.40021553,1808.8,1808.7,0.46402018]
[1745696229295,0.30968833,1808.8,1808.7,6.34333147]
[1745696229587,0.1,1808.9,1808.8,0.8103]
[1745696230186,0.41055747,1808.9,1808.8,1.26939967]
[1745696231688,0.1,1808.9,1808.8,1.26939967]
[1745696237165,0.1,1808.9,1808.8,6.79792687]
[1745696250124,0.1,1808.9,1808.8,7.20741451]
[1745696250425,0.1,1808.9,1808.8,8.54542307]
[1745696251327,0.1,1808.9,1808.8,13.04678411]
[1745696251511,0.1,1808.9,1808.8,13.54151005]
[1745696259447,5.52653618,1809.5,1809.0,5.52769848]
[1745696259628,0.7631,1809.4,1809.1,0.44694577]
[1745696262272,0.7631,1809.4,1809.1,5.97453287]
[1745696264077,5.52653618,1809.5,1809.1,5.97453287]
[1745696268288,11.25922648,1809.6,1809.2,0.7587]
[1745696268690,0.3102409,1809.5,1809.3,0.44716763]
[1745696269191,5.83667278,1809.5,1809.3,0.44716763]
[1745696269561,5.52643188,1809.5,1809.3,0.44716763]
[1745696269886,5.52643188,1809.5,1809.1,6.33120165]
[1745696270090,5.52643188,1809.5,1809.2,0.4472785]
[1745696270294,11.25919501,1809.6,1809.2,5.97454924]
[1745696270493,11.25919501,1809.6,1809.2,6.20510566]
[1745696270688,11.25919501,1809.6,1809.3,0.44733396]
[1745696271193,0.31026343,1809.5,1809.3,0.44733396]
[1745696274079,0.31026343,1809.5,1809.1,6.33121792]
[1745696274280,0.31026343,1809.5,1809.4,0.44733396]
[1745696274491,0.31026343,1809.5,1809.1,6.33121792]
[1745696274672,0.31026343,1809.5,1809.4,0.44733396]
[1745696275306,0.31026343,1809.5,1809.2,5.52711501]
[1745696275606,11.25919501,1809.6,1809.2,5.52711501]
[1745696275802,11.25919501,1809.6,1809.3,0.44733396]
[1745696277000,0.31049244,1809.5,1809.3,0.44733396]
[1745696277898,11.25919501,1809.6,1809.3,0.44733396]
[1745696279210,0.3106134,1809.5,1809.3,0.44733396]
[1745696279594,11.25919501,1809.6,1809.3,0.44733396]
[1745696280063,11.25919501,1809.6,1809.1,7.66172484]
[1745696280264,11.25919501,1809.6,1809.4,0.44733396]
[1745696280469,11.25919501,1809.6,1809.1,7.66172484]
[1745696280665,6.69919501,1809.6,1809.5,0.44733396]
[1745696280911,6.69919501,1809.6,1809.1,7.66169635]
[1745696281110,6.69919501,1809.6,1809.5,0.44733396]
[1745696281315,7.00998666,1809.6,1809.1,7.66169635]
[1745696281514,7.00998666,1809.6,1809.5,0.44733396]
[1745696281685,8.2635783,1809.6,1809.1,7.66169635]
[1745696282007,7.00998666,1809.6,1809.1,7.66169635]
[1745696282211,0.31079165,1809.5,1809.2,0.44733396]
[1745696282508,0.31079165,1809.5,1809.2,5.52728493]
[1745696282709,0.31079165,1809.4,1809.3,0.44733396]
[1745696285018,0.31079165,1809.4,1809.3,1.27123396]
[1745696285216,0.31079165,1809.4,1809.3,0.44733396]
[1745696285217,1.11919165,1809.4,1809.3,0.44733396]
[1745696285417,1.11919165,1809.4,1809.1,1.33050692]
[1745696285628,1.11919165,1809.4,1809.3,0.4472785]
[1745696285799,1.11919165,1809.4,1809.0,6.35160628]
[1745696286001,1.11919165,1809.4,1809.1,0.44761131]
[1745696286629,0.8084,1809.4,1809.1,0.44761131]
[1745696287026,0.78643087,1809.4,1809.1,0.44761131]
[1745696287332,0.31098429,1809.3,1809.2,0.8174]
[1745696287828,0.31098429,1809.3,1809.2,1.26501131]
[1745696288032,5.9360778,1809.6,1809.2,1.26501131]
[1745696288240,0.4098601,1809.6,1809.2,1.26501131]
[1745696288394,0.4098601,1809.6,1809.2,6.79213738]
[1745696288599,0.31094932,1809.5,1809.3,0.67921374]
[1745696288795,0.31094932,1809.5,1809.4,5.52669393]
[1745696289041,0.31094932,1809.5,1809.4,0.44761131]
[1745696289330,0.31094932,1809.5,1809.3,0.67921374]
[1745696289495,0.31094932,1809.5,1809.4,0.44761131]
[1745696289689,0.31094932,1809.5,1809.4,0.66538096]
[1745696289890,0.31094932,1809.5,1809.4,0.44689029]
[1745696290136,0.31094932,1809.5,1809.2,6.34448762]
[1745696290301,0.31094932,1809.5,1809.4,0.44689029]
[1745696290505,0.31094932,1809.5,1809.2,6.34448762]
[1745696290693,0.4098601,1809.6,1809.4,0.44689029]
[1745696290895,0.4098601,1809.6,1809.2,6.34448762]
[1745696291125,0.4098601,1809.6,1809.5,0.44689029]
[1745696291306,0.4098601,1809.6,1809.3,0.63444876]
[1745696291508,0.4098601,1809.6,1809.5,0.44689029]
[1745696291709,0.4098601,1809.6,1809.3,6.16142913]
[1745696291914,0.4098601,1809.6,1809.5,0.44689029]
[1745696292134,0.4098601,1809.6,1809.3,0.63444876]
[1745696292434,0.7206972,1809.6,1809.3,0.63444876]
[1745696292598,0.7206972,1809.6,1809.4,0.44689029]
[1745696292797,0.7206972,1809.6,1809.3,6.16122192]
[1745696293000,0.4098601,1809.6,1809.4,1.06301248]
[1745696295036,5.93598366,1809.6,1809.4,0.44689029]
[1745696295198,5.93598366,1809.6,1809.3,0.63444876]
[1745696295531,5.93598366,1809.6,1809.4,0.44689029]
[1745696295936,5.93598366,1809.6,1809.3,0.63444876]
[1745696296450,5.93598366,1809.6,1809.4,0.44689029]
[1745696296753,0.31072788,1809.5,1809.3,0.63444876]
[1745696297837,6.76936177,1809.6,1809.3,0.63444876]
[1745696297997,1.2430601,1809.6,1809.1,6.33638939]
[1745696298836,6.76933016,1809.6,1809.1,11.86377858]
[1745696299544,0.31072873,1809.5,1809.2,5.52729556]
[1745696300103,6.76933016,1809.6,1809.2,5.52729556]
[1745696300537,6.76933016,1809.6,1809.1,6.33638919]
[1745696300744,6.76933016,1809.6,1809.2,0.63363892]
[1745696300927,6.76933016,1809.6,1809.2,6.16092545]
[1745696301945,0.31073247,1809.5,1809.2,6.16092545]
[1745696302705,6.76933016,1809.6,1809.2,6.16092545]
[1745696304248,0.31072917,1809.5,1809.2,6.16092545]
[1745696304447,0.31072917,1809.5,1809.3,0.61609255]
[1745696305055,6.76933016,1809.6,1809.3,0.61609255]
[1745696305948,0.4098601,1809.6,1809.4,5.52656281]
[1745696306153,0.4098601,1809.6,1809.3,8.37268695]
[1745696306339,0.4098601,1809.6,1809.3,6.92659997]
[1745696306655,0.4098601,1809.6,1809.4,0.69266]
[1745696307018,0.4098601,1809.6,1809.5,0.44644654]
[1745696308453,5.5264315,1809.5,1809.1,5.5275211]
[1745696308658,8.16273019,1809.6,1809.5,0.4314626]
[1745696308860,15.05792667,1809.6,1809.1,5.5275211]
[1745696309153,8.16273019,1809.6,1809.5,0.43185023]
[1745696309458,8.47336302,1809.6,1809.5,0.43185023]
[1745696309659,8.47336302,1809.6,1809.1,5.5275211]
[1745696309819,8.47336302,1809.6,1809.5,0.4322379]
[1745696310020,8.47336302,1809.6,1809.1,5.5275211]
[1745696310247,8.16273019,1809.6,1809.5,0.4322379]
[1745696310449,8.16273019,1809.6,1809.1,5.5275211]
[1745696310621,8.16273019,1809.6,1809.5,0.4322379]
[1745696310822,8.16273019,1809.6,1809.1,5.5275211]
[1745696311023,8.47337667,1809.6,1809.5,0.4322379]
[1745696311364,10.32920685,1809.6,1809.1,5.5275211]
[1745696311550,8.47337667,1809.6,1809.5,0.4322379]
[1745696311750,8.47337667,1809.6,1809.1,5.52738675]
[1745696311934,8.47337667,1809.6,1809.5,0.4322379]
[1745696312266,8.16273019,1809.6,1809.5,0.4322379]
[1745696312457,8.47339185,1809.6,1809.1,5.52738675]
[1745696312628,8.47339185,1809.6,1809.5,0.4322379]
[1745696312964,8.47339185,1809.6,1809.1,6.71384295]
[1745696313160,8.47339185,1809.6,1809.5,0.4322379]
[1745696313664,8.47339185,1809.6,1809.1,12.2412159]
[1745696313861,8.47339185,1809.6,1809.5,0.4322379]
[1745696314158,10.01856189,1809.6,1809.1,6.71382915]
[1745696314359,8.16273019,1809.6,1809.5,0.4322379]
[1745696314554,8.16273019,1809.6,1809.2,5.52728711]
[1745696314758,8.16273019,1809.6,1809.5,0.4322379]
[1745696314944,8.47340879,1809.6,1809.2,5.52728711]
[1745696315131,8.47340879,1809.6,1809.5,0.4322379]
[1745696315332,10.32924218,1809.6,1809.2,5.52728711]
[1745696315533,8.47340879,1809.6,1809.5,0.4322379]
[1745696316173,8.47340879,1809.6,1809.2,5.52728711]
[1745696316632,2.94732568,1809.6,1809.3,0.4322379]
[1745696316833,0.3106786,1809.5,1809.3,0.4322379]
[1745696317468,0.3106786,1809.5,1809.3,5.95920547]
[1745696317670,2.63664708,1809.6,1809.3,7.10785473]
[1745696317853,2.63664708,1809.6,1809.3,0.4322379]
[1745696318064,7.38219665,1809.6,1809.3,0.4322379]
[1745696318367,0.7819,1809.5,1809.2,5.52729996]
[1745696318538,0.7819,1809.5,1809.4,0.43240405]
[1745696318744,0.7819,1809.5,1809.1,5.5274227]
[1745696319080,0.7819,1809.5,1809.1,6.71382686]
[1745696319237,0.7819,1809.5,1809.2,0.43240405]
[1745696319440,0.7819,1809.5,1809.1,6.71382686]
[1745696319742,6.30829353,1809.5,1809.3,0.43240405]
[1745696319942,0.3107344,1809.4,1809.1,5.52736547]
[1745696320158,0.3107344,1809.4,1809.1,6.71381964]
[1745696320773,0.7819,1809.5,1809.1,6.71381964]
[1745696321164,0.7819,1809.5,1809.2,5.52724957]
[1745696322096,0.7819,1809.5,1809.3,0.43240405]
[1745696324352,6.30829651,1809.5,1809.3,0.43240405]
[1745696324688,6.30829651,1809.5,1809.4,0.43334547]
[1745696324981,6.30829651,1809.5,1809.1,6.71381964]
[1745696325183,6.30829651,1809.5,1809.4,0.43334547]
[1745696325348,6.30829651,1809.5,1809.1,5.52736547]
[1745696325994,6.30829651,1809.5,1809.2,0.43334547]
[1745696326348,6.30829651,1809.5,1809.1,5.52736547]
[1745696326584,6.30829651,1809.5,1809.3,0.43334547]
[1745696326760,0.31070982,1809.4,1809.0,7.78321482]
[1745696326961,0.31070982,1809.4,1809.1,0.77832148]
[1745696327484,11.83493641,1809.5,1809.1,0.77832148]
[1745696328990,5.83741166,1809.4,1809.1,0.77832148]
[1745696329889,5.52671471,1809.4,1809.1,0.77832148]
[1745696331788,5.52701217,1809.3,1809.1,0.77832148]
[1745696331994,5.52736648,1809.2,1808.9,4.558]
[1745696333571,1.44608698,1809.1,1808.7,0.00419861]
[1745696333879,5.5285272,1808.8,1808.7,0.00419861]
[1745696334288,6.30050654,1808.9,1808.7,0.00419861]
[1745696337171,6.30050654,1808.9,1808.8,0.40209462]
[1745696343269,5.52840654,1808.9,1808.8,0.40209462]
[1745696343985,0.8325,1809.2,1808.8,8.16532836]
[1745696344310,5.52712806,1809.3,1808.8,8.16538751]
[1745696344311,5.52701311,1809.3,1808.8,8.16538751]
[1745696345110,5.52701311,1809.3,1808.8,13.69369869]
[1745696345291,5.52701311,1809.3,1808.9,1.36936987]
[1745696345491,5.52701311,1809.3,1808.9,1.772462]
[1745696346004,5.52731657,1809.2,1808.9,1.772462]
[1745696346416,5.52717757,1809.3,1808.9,1.772462]
[1745696346915,11.05446805,1809.3,1808.9,1.772462]
[1745696347237,5.52688717,1809.4,1809.0,0.7888]
[1745696347515,5.52707894,1809.3,1809.0,1.74233731]
[1745696347819,5.52707894,1809.3,1809.1,0.4007648]
[1745696349688,5.52730488,1809.2,1808.9,0.7888]
[1745696350217,5.52716868,1809.3,1808.9,0.7888]
[1745696350818,5.52716868,1809.3,1808.9,6.3169777]
[1745696351118,5.52716868,1809.3,1809.0,0.63169777]
[1745696351884,10.08554452,1809.5,1809.2,0.7888]
[1745696352319,5.52654452,1809.5,1809.3,0.40037698]
[1745696353835,5.52669393,1809.4,1809.3,0.40037698]
[1745696354120,1.10532385,1809.4,1809.0,0.7888]
[1745696354325,5.52724791,1809.3,1809.0,0.7888]
[1745696356620,5.52734093,1809.2,1809.0,0.7888]
[1745696356826,5.52786615,1809.1,1808.8,0.7995]
[1745696357009,0.7588,1809.2,1808.7,0.00419861]
[1745696357010,5.5285272,1808.8,1808.7,0.00419861]
[1745696357413,5.52839713,1808.9,1808.7,0.38456847]
[1745696357613,5.5285272,1808.8,1808.7,0.00419861]
[1745696364040,5.52836395,1808.9,1808.7,0.00419861]
[1745696364345,5.52836395,1808.9,1808.7,0.82179861]
[1745696365204,5.52849105,1808.9,1808.7,0.82179861]
[1745696365400,5.5285272,1808.8,1808.7,0.82179861]
[1745696367139,5.5285272,1808.8,1808.7,1.209204]
[1745696370248,5.52822942,1808.9,1808.7,1.209204]
[1745696370249,5.52840287,1808.9,1808.7,1.209204]
[1745696370409,5.5285272,1808.8,1808.7,1.209204]
[1745696372040,5.52823189,1808.9,1808.7,1.209204]
[1745696372247,5.5285272,1808.8,1808.7,0.391604]
[1745696374541,5.52831728,1808.9,1808.7,0.00419861]
[1745696374741,6.11,1809.0,1808.7,0.00419861]
[1745696374945,5.52772158,1809.1,1808.8,0.7783]
[1745696375133,5.52772158,1809.1,1808.8,1.16764182]
[1745696376046,5.52794664,1809.0,1808.8,1.16764182]
[1745696376611,5.52822157,1808.9,1808.8,0.38934182]
[1745696382452,5.83861864,1808.9,1808.8,0.38934182]
[1745696382963,0.31039707,1808.9,1808.8,1.19954182]
[1745696383255,5.52810481,1809.0,1808.8,1.19954182]
[1745696385445,5.52810481,1809.0,1808.8,0.38934182]
[1745696385754,0.31068676,1808.9,1808.8,0.38934182]
[1745696386664,5.83890833,1808.9,1808.8,0.38934182]
[1745696387380,5.83890833,1808.9,1808.6,0.7942]
[1745696387572,5.83890833,1808.9,1808.8,0.38923114]
[1745696387743,5.52822157,1808.9,1808.6,0.7942]
[1745696387944,5.52822157,1808.9,1808.8,0.38923114]
[1745696388155,5.52822157,1808.9,1808.6,0.7942]
[1745696388355,5.52822157,1808.9,1808.8,0.38923114]
[1745696388543,5.52822157,1808.9,1808.6,0.7942]
[1745696388760,5.52822157,1808.9,1808.8,0.38923114]
[1745696388965,5.52822157,1808.9,1808.6,1.57108165]
[1745696389164,5.52822157,1808.9,1808.8,0.38923114]
[1745696389382,5.52822157,1808.9,1808.6,1.57108165]
[1745696389551,5.83905159,1808.9,1808.7,0.38923114]
[1745696390390,5.52822157,1808.9,1808.7,0.38923114]
[1745696394190,5.52809311,1809.0,1808.7,0.38923114]
[1745696394389,11.05629424,1809.0,1808.7,0.38923114]
[1745696397301,5.52809311,1809.0,1808.7,0.38923114]
[1745696397514,5.52809311,1809.0,1808.7,1.13816863]
[1745696399913,5.52837764,1808.9,1808.7,0.38923114]
[1745696402205,5.52810346,1809.0,1808.7,0.38923114]
[1745696403914,5.52810346,1809.0,1808.7,1.83442313]
[1745696404811,0.31086138,1808.9,1808.7,1.83442313]
[1745696405909,5.52810346,1809.0,1808.7,1.83442313]
[1745696407011,5.52810346,1809.0,1808.7,2.41075392]
[1745696407309,0.310973,1808.9,1808.7,2.41075392]
[1745696408087,5.52810346,1809.0,1808.7,2.41075392]
[1745696409312,5.52810346,1809.0,1808.7,1.83442313]
[1745696410005,5.52825061,1808.9,1808.7,1.83442313]
[1745696416221,5.52813302,1809.0,1808.7,1.83442313]
[1745696417018,0.3110505,1808.9,1808.7,1.83442313]
[1745696418214,5.52813302,1809.0,1808.7,1.83442313]
[1745696419323,0.31105955,1808.9,1808.7,1.83442313]
[1745696419488,0.31105955,1808.9,1808.7,2.72788465]
[1745696419918,5.83930473,1808.9,1808.7,2.72788465]
[1745696420130,5.52824518,1808.9,1808.7,1.83862175]
[1745696421723,5.52824518,1808.9,1808.7,0.39342976]
[1745696423720,0.7673,1809.2,1808.8,0.8231]
[1745696423911,0.31104114,1809.1,1808.9,1.44519199]
[1745696424431,0.31104114,1809.1,1809.0,0.3890098]
[1745696425523,5.83865155,1809.1,1809.0,0.3890098]
[1745696425826,0.31104114,1809.1,1809.0,0.3890098]
[1745696431705,0.31104114,1809.1,1809.0,0.53274865]
[1745696436661,5.52749839,1809.2,1809.0,0.53274865]
[1745696441127,0.31065327,1809.1,1809.0,0.53274865]
[1745696442154,5.52749839,1809.2,1809.0,0.53274865]
[1745696444453,0.31069099,1809.1,1809.0,0.53274865]
[1745696444981,0.31069099,1809.1,1809.0,0.53142067]
[1745696445252,0.31069099,1809.1,1808.8,6.35158141]
[1745696445454,0.31069099,1809.1,1809.0,0.53142067]
[1745696445654,0.31069099,1809.1,1808.9,0.63515814]
[1745696445655,0.31069099,1809.1,1808.8,6.35158141]
[1745696446149,0.31069099,1809.1,1808.9,0.53142067]
[1745696446356,5.52749839,1809.2,1808.8,6.35158141]
[1745696446553,0.7673,1809.3,1808.9,1.97661266]
[1745696446752,5.52685703,1809.4,1809.0,6.31609357]
[1745696446917,0.31071162,1809.2,1809.1,6.9728024]
[1745696447123,0.31071162,1809.2,1809.1,7.50455504]
[1745696447822,0.31071162,1809.4,1809.1,7.50455504]
[1745696448465,5.83740999,1809.4,1809.1,1.97694463]
[1745696448621,5.83740999,1809.4,1809.1,0.53175264]
[1745696448842,5.52669837,1809.4,1809.1,0.53175264]
[1745696449477,11.05365461,1809.4,1809.1,0.53175264]
[1745696450084,5.52669837,1809.4,1809.1,0.53175264]
[1745696450972,5.52702732,1809.3,1809.1,0.53175264]
[1745696452978,5.52702732,1809.3,1809.1,0.92548596]
[1745696455882,5.52702732,1809.3,1809.1,0.53175264]
[1745696458989,5.52687945,1809.4,1809.1,0.53175264]
[1745696459863,0.31057874,1809.3,1809.1,0.53175264]
[1745696460652,5.52687945,1809.4,1809.1,0.53175264]
[1745696460852,11.05383833,1809.4,1809.1,0.53175264]
[1745696461186,5.52701082,1809.3,1809.1,0.53175264]
[1745696465368,5.52689037,1809.4,1809.1,0.53175264]
[1745696465893,0.3106045,1809.3,1809.1,0.53175264]
[1745696466096,5.83767426,1809.3,1809.1,0.53175264]
[1745696466276,5.52730488,1809.2,1809.1,0.53175264]
[1745696466879,5.528048,1809.0,1808.8,3.0]
[1745696467084,5.528048,1809.0,1808.7,5.28209061]
[1745696467900,5.52791597,1809.0,1808.7,2.28209061]
[1745696468191,5.52791597,1809.0,1808.7,0.00419862]
[1745696468192,6.29153076,1808.9,1808.7,0.00419862]
[1745696468899,5.5285272,1808.8,1808.7,0.00419862]
[1745696469060,6.29153834,1808.9,1808.7,0.00419862]
[1745696469902,5.5285272,1808.8,1808.7,0.00419862]
[1745696470195,6.2917272,1808.8,1808.7,0.00419862]
[1745696470497,7.75242678,1808.8,1808.7,0.00419862]
[1745696471373,6.602123,1808.8,1808.7,0.00419862]
[1745696472308,6.602123,1808.8,1808.7,0.49537381]
[1745696472517,6.602123,1808.8,1808.7,0.00419862]
[1745696472708,6.602123,1808.8,1808.7,0.49537381]
[1745696473006,6.602123,1808.8,1808.7,0.00419862]
[1745696473609,6.602123,1808.8,1808.7,0.49537381]
[1745696474616,6.2917272,1808.8,1808.7,0.49537381]
[1745696475609,6.11,1809.0,1808.7,7.46926491]
[1745696475817,6.11,1809.0,1808.8,1.44519199]
[1745696476202,6.11,1809.0,1808.9,0.49117519]
[1745696476378,6.11,1809.0,1808.8,1.44519199]
[1745696476798,6.11,1809.0,1808.9,0.49117519]
[1745696477134,6.11,1809.0,1808.8,1.44519199]
[1745696477425,6.11,1809.0,1808.9,0.49117519]
[1745696477582,6.11,1809.0,1808.8,1.44519199]
[1745696478089,6.11,1809.0,1808.9,0.49117519]
[1745696478524,6.11,1809.0,1808.8,1.44519199]
[1745696478817,6.11,1809.0,1808.9,0.49117519]
[1745696479023,6.11,1809.0,1808.8,1.44519199]
[1745696479397,6.11,1809.0,1808.9,0.49117519]
[1745696479715,6.11,1809.0,1808.8,1.44519199]
[1745696479924,5.52761444,1809.1,1808.9,0.49117519]
[1745696480221,5.52761444,1809.1,1808.8,1.44519199]
[1745696480524,5.52761444,1809.1,1808.9,0.49117519]
[1745696480815,5.52791597,1809.0,1808.9,0.49117519]
[1745696481326,5.52791597,1809.0,1808.7,0.00419862]
[1745696481619,5.52791597,1809.0,1808.9,0.49117519]
[1745696481823,5.52791597,1809.0,1808.7,0.00419862]
[1745696481985,5.52791597,1809.0,1808.9,0.49117519]
[1745696482319,5.52791597,1809.0,1808.7,0.00419862]
[1745696482917,5.52791597,1809.0,1808.9,0.49117519]
[1745696483422,5.52779106,1809.1,1808.7,1.44939061]
[1745696483622,5.52779106,1809.1,1808.8,0.49117519]
[1745696488128,11.05569841,1809.1,1808.8,0.49117519]
[1745696488319,5.52779106,1809.1,1808.8,0.49117519]
[1745696489201,5.52795271,1809.0,1808.8,0.49117519]
[1745696489400,5.52772265,1809.1,1808.8,0.49117519]
[1745696490067,5.52772265,1809.1,1808.8,1.26837519]
[1745696491232,5.52792547,1809.0,1808.8,1.26837519]
[1745696491436,5.52792547,1809.0,1808.8,0.49117519]
[1745696495056,11.05612439,1809.0,1808.8,0.49117519]
[1745696495226,5.52792547,1809.0,1808.8,0.49117519]
[1745696496956,5.5278053,1809.1,1808.8,0.49117519]
[1745696497253,0.31056334,1809.0,1808.8,0.49117519]
[1745696497420,0.31056334,1809.0,1808.9,1.44519199]
[1745696497621,0.31056334,1809.0,1808.9,1.93631207]
[1745696497957,5.52762802,1809.1,1808.9,1.93631207]
[1745696499339,5.52791597,1809.0,1808.9,1.93631207]
[1745696500063,5.83847855,1809.0,1808.9,1.93631207]
[1745696500469,5.83847855,1809.0,1808.9,0.49112008]
[1745696500668,5.83847855,1809.0,1808.7,2.22659061]
[1745696500968,5.83847855,1809.0,1808.8,0.49095483]
[1745696501874,5.52791597,1809.0,1808.8,0.49095483]
[1745696502582,5.52822157,1808.9,1808.8,0.49095483]
[1745696503474,5.83899805,1808.9,1808.8,0.49095483]
[1745696504336,6.60949805,1808.9,1808.8,0.49095483]
[1745696504681,6.2990272,1808.8,1808.7,0.00419862]
[1745696504877,6.60980368,1808.8,1808.7,0.49586974]
[1745696510452,6.60980368,1808.8,1808.7,0.00419862]
[1745696510785,6.60980368,1808.8,1808.7,0.49928637]
[1745696510970,6.60980368,1808.8,1808.7,0.00419862]
[1745696511174,7.85593412,1808.8,1808.7,0.49928637]
[1745696511382,7.85593412,1808.8,1808.7,0.00419862]
[1745696511586,7.85593412,1808.8,1808.7,0.49928637]
[1745696511754,7.85593412,1808.8,1808.7,0.00419862]
[1745696511953,7.85593412,1808.8,1808.7,0.49928637]
[1745696512185,7.08543412,1808.8,1808.7,0.00419862]
[1745696512368,7.08543412,1808.8,1808.7,0.49928637]
[1745696512691,7.08543412,1808.8,1808.7,0.49901079]
[1745696546740,7.08543412,1808.8,1808.7,0.00419862]
[1745696549120,7.08543412,1808.8,1808.7,0.4980739]
[1745696549555,7.08543412,1808.8,1808.7,0.00419862]
[1745696550358,7.08543412,1808.8,1808.7,0.4980739]
[1745696550521,7.08543412,1808.8,1808.7,0.00419862]
[1745696553561,7.08543412,1808.8,1808.7,0.49812901]
[1745696553771,7.08543412,1808.8,1808.7,0.00419862]
[1745696553965,7.08543412,1808.8,1808.7,0.49812901]
[1745696554167,7.08543412,1808.8,1808.7,0.00419862]
[1745696554461,7.08543412,1808.8,1808.7,0.49812901]
[1745696554627,7.08543412,1808.8,1808.7,0.00419862]
[1745696554827,7.08543412,1808.8,1808.7,0.49812901]
[1745696555042,7.08543412,1808.8,1808.7,0.00419862]
[1745696555251,7.08543412,1808.8,1808.7,0.49812901]
[1745696555459,7.08543412,1808.8,1808.7,0.00419862]
[1745696555660,7.08543412,1808.8,1808.7,0.49812901]
[1745696555862,7.08543412,1808.8,1808.7,0.00419862]
[1745696556071,16.95833412,1808.8,1808.7,1e-08]
[1745696556224,18.40352611,1808.8,1808.7,1e-08]
[1745696556539,5.53127938,1807.9,1807.8,2.23379199]
[1745696556869,5.53127938,1807.9,1807.8,1.12725828]
[1745696559374,5.53127938,1807.9,1807.8,0.33865828]
[1745696559830,11.06282492,1807.9,1807.6,0.8028]
[1745696560030,5.53127938,1807.9,1807.8,0.34118406]
[1745696560245,5.53160686,1807.8,1807.6,0.8028]
[1745696560472,5.53160686,1807.8,1807.6,2.24799199]
[1745696563583,5.53160686,1807.8,1807.7,0.34118406]
[1745696583733,5.84189505,1807.8,1807.7,0.34118406]
[1745696584544,0.31028819,1807.8,1807.7,6.66087541]
[1745696584753,11.64048367,1808.2,1807.8,5.5314753]
[1745696584923,11.64048367,1808.2,1808.0,1.44519199]
[1745696585239,5.84146031,1808.1,1808.0,1.44519199]
[1745696587442,5.84146031,1808.1,1807.9,1.44519199]
[1745696587746,5.53066755,1808.1,1807.9,1.44519199]
[1745696587946,5.53055187,1808.2,1807.9,1.44519199]
[1745696589146,0.31076159,1808.1,1807.9,1.44519199]
[1745696591146,5.53055187,1808.2,1807.9,1.44519199]
[1745696591749,11.06116355,1808.2,1807.9,1.44519199]
[1745696591965,11.06116355,1808.2,1808.0,0.3465104]
[1745696592667,5.53055187,1808.2,1808.0,0.3465104]
[1745696592810,5.53055187,1808.2,1808.0,2.61820239]
[1745696594850,10.672,1808.4,1808.2,0.7909]
[1745696595053,6.11,1808.4,1808.3,1.44519199]
[1745696595253,5.52945942,1808.5,1808.3,1.44519199]
[1745696595425,5.52945942,1808.5,1808.3,1.79170239]
[1745696595753,0.31036223,1808.4,1808.3,2.58260239]
[1745696595912,0.31036223,1808.4,1808.3,1.1374104]
[1745696596238,5.52927263,1808.6,1808.3,1.1374104]
[1745696597455,5.52955584,1808.5,1808.3,1.1374104]
[1745696600557,5.52932207,1808.6,1808.3,1.1374104]
[1745696601417,11.05871769,1808.6,1808.3,1.1374104]
[1745696602254,5.52932207,1808.6,1808.3,1.1374104]
[1745696603331,5.52932207,1808.6,1808.3,1.94870185]
[1745696604456,13.99703443,1808.7,1808.3,1.94870185]
[1745696604656,13.99703443,1808.7,1808.3,6.66746458]
[1745696607477,13.99703443,1808.7,1808.4,1.44519199]
[1745696607894,13.99703443,1808.7,1808.5,0.34299534]
[1745696608232,8.46805331,1808.7,1808.5,0.34299534]
[1745696608434,8.46805331,1808.7,1808.5,1.10219534]
[1745696609369,13.99690993,1808.7,1808.5,1.10219534]
[1745696613595,5.52913856,1808.6,1808.5,1.10219534]
[1745696613789,13.99708303,1808.7,1808.5,1.10219534]
[1745696618398,15.94966064,1808.7,1808.5,1.10219534]
[1745696618911,0.31036715,1808.6,1808.5,1.10219534]
[1745696620224,0.31036715,1808.6,1808.5,0.34299534]
[1745696621951,0.31036715,1808.6,1808.5,1.78818733]
[1745696622162,0.31036715,1808.6,1808.5,2.57718733]
[1745696622809,0.31036715,1808.6,1808.5,1.13199534]
[1745696624955,0.31036715,1808.6,1808.5,2.57718733]
[1745696632963,0.31036715,1808.6,1808.5,1.13199534]
[1745696639825,0.31036715,1808.6,1808.5,0.34299534]
[1745696649816,5.53002941,1808.4,1808.2,0.7712]
[1745696650017,2.07749625,1808.6,1808.0,2.21639199]
[1745696650018,5.53016904,1808.3,1808.0,2.21639199]
[1745696650311,5.84087386,1808.2,1808.0,1.44519199]
[1745696651246,5.53050671,1808.2,1808.0,1.44519199]
[1745696652071,6.32269946,1808.3,1808.1,0.31159851]
[1745696652230,6.32269946,1808.3,1808.1,1.7567905]
[1745696652430,5.53019946,1808.3,1808.1,1.7567905]
[1745696658082,11.06051394,1808.3,1808.1,1.7567905]
[1745696658261,5.53019946,1808.3,1808.1,1.7567905]
[1745696658575,6.32286168,1808.2,1808.1,0.31159851]
[1745696658936,5.53107646,1808.0,1807.7,1.44519199]
[1745696659176,5.53107646,1808.0,1807.7,1.39519199]
[1745696659177,6.32357646,1808.0,1807.7,1.39519199]
[1745696660357,6.32357646,1808.0,1807.8,1.44519199]
[1745696660546,0.7925,1808.0,1807.8,1.44519199]
[1745696660750,5.53077133,1808.1,1807.9,1.44519199]
[1745696662269,6.83974412,1808.1,1807.9,1.44519199]
[1745696662469,12.37066765,1808.1,1807.8,1.44519199]
[1745696662789,6.83974412,1808.1,1807.8,1.44519199]
[1745696663186,5.53101273,1808.0,1807.8,1.44519199]
[1745696666588,5.53103495,1808.0,1807.8,1.44519199]
[1745696666888,6.83981793,1808.1,1807.8,1.44519199]